[Event "December 5 Late 2023"]
[Site "https://www.chess.com"]
[Date "2023.12.05"]
[Round "3"]
[White "Svane, Rasmus"]
[Black "Thomforde-Toates, Noah"]
[Result "1-0"]
[Board "25"]
[TimeControl "180+1"]
[WhiteFideId "4657101"]
[BlackFideId "30951992"]
[WhiteElo "2935"]
[BlackElo "2661"]
[WhiteTeam "GER"]
[BlackTeam "USA"]
[WhiteClock "0:00:15"]
[BlackClock "0:00:24"]

1. Nf3 {[%clk 0:03:00]}  Nf6 {[%clk 0:02:59]} 2. g3 {[%clk 0:02:59]}  g6 {[%clk 0:02:59]} 3. Bg2 {[%clk 0:02:57]}  Bg7 {[%clk 0:02:59]} 4. O-O {[%clk 0:02:56]}  O-O {[%clk 0:03:00]} 5. d4 {[%clk 0:02:56]}  d6 {[%clk 0:03:00]} 6. Re1 {[%clk 0:02:56]}  Nbd7 {[%clk 0:02:55]} 7. e4 {[%clk 0:02:55]}  e5 {[%clk 0:02:55]} 8. Nc3 {[%clk 0:02:55]}  c6 {[%clk 0:02:54]} 9. a4 {[%clk 0:02:55]}  a5 {[%clk 0:02:54]} 10. h3 {[%clk 0:02:45]}  Qc7 {[%clk 0:02:48]} 11. Be3 {[%clk 0:02:44]}  Re8 {[%clk 0:02:47]} 12. Nd2 {[%clk 0:02:42]}  Nf8 {[%clk 0:02:45]} 13. d5 {[%clk 0:02:18]}  N8d7 {[%clk 0:02:21]} 14. Qe2 {[%clk 0:02:06]}  b6 {[%clk 0:02:15]} 15. Qc4 {[%clk 0:02:00]}  Nc5 {[%clk 0:02:13]} 16. dxc6 {[%clk 0:01:47]}  Ba6 {[%clk 0:02:11]} 17. Qa2 {[%clk 0:01:45]}  Qxc6 {[%clk 0:02:10]} 18. Rad1 {[%clk 0:01:45]}  Rad8 {[%clk 0:02:08]} 19. Bg5 {[%clk 0:01:25]}  h6 {[%clk 0:02:00]} 20. Bxf6 {[%clk 0:01:25]}  Bxf6 {[%clk 0:02:01]} 21. Nd5 {[%clk 0:01:23]}  Bg7 {[%clk 0:02:00]} 22. b3 {[%clk 0:01:16]}  Ne6 {[%clk 0:01:55]} 23. c3 {[%clk 0:01:16]}  Nc7 {[%clk 0:01:52]} 24. Nxc7 {[%clk 0:01:10]}  Qxc7 {[%clk 0:01:52]} 25. Qb2 {[%clk 0:01:06]}  b5 {[%clk 0:01:35]} 26. Bf1 {[%clk 0:01:04]}  Qb6 {[%clk 0:01:33]} 27. axb5 {[%clk 0:01:03]}  Bxb5 {[%clk 0:01:34]} 28. Bxb5 {[%clk 0:01:03]}  Qxb5 {[%clk 0:01:35]} 29. Qa2 {[%clk 0:01:03]}  d5 {[%clk 0:01:33]} 30. c4 {[%clk 0:01:00]}  dxc4 {[%clk 0:01:33]} 31. Nxc4 {[%clk 0:01:01]}  Rd4 {[%clk 0:01:26]} 32. Nd6 {[%clk 0:00:53]}  Rxd1 {[%clk 0:01:21]} 33. Rxd1 {[%clk 0:00:53]}  Qd7 {[%clk 0:01:20]} 34. Rd5 {[%clk 0:00:49]}  Rb8 {[%clk 0:01:17]} 35. Nf5 {[%clk 0:00:44]}  Qc7 {[%clk 0:01:14]} 36. Nxg7 {[%clk 0:00:42]}  Kxg7 {[%clk 0:01:15]} 37. Qxa5 {[%clk 0:00:38]}  Qxa5 {[%clk 0:01:12]} 38. Rxa5 {[%clk 0:00:38]}  Rxb3 {[%clk 0:01:11]} 39. Rxe5 {[%clk 0:00:39]}  Kf6 {[%clk 0:01:10]} 40. Re8 {[%clk 0:00:38]}  Rb2 {[%clk 0:01:08]} 41. Kg2 {[%clk 0:00:39]}  Rb3 {[%clk 0:01:09]} 42. g4 {[%clk 0:00:35]}  Ra3 {[%clk 0:01:07]} 43. f3 {[%clk 0:00:35]}  Ra1 {[%clk 0:01:04]} 44. Rd8 {[%clk 0:00:33]}  g5 {[%clk 0:01:02]} 45. Rd6+ {[%clk 0:00:33]}  Kg7 {[%clk 0:01:01]} 46. h4 {[%clk 0:00:29]}  gxh4 {[%clk 0:01:00]} 47. Rd5 {[%clk 0:00:29]}  Ra2+ {[%clk 0:01:00]} 48. Kh3 {[%clk 0:00:29]}  Ra3 {[%clk 0:00:56]} 49. Rf5 {[%clk 0:00:28]}  Kg6 {[%clk 0:00:57]} 50. Kxh4 {[%clk 0:00:28]}  Ra1 {[%clk 0:00:57]} 51. Kg3 {[%clk 0:00:28]}  Ra6 {[%clk 0:00:55]} 52. Kf4 {[%clk 0:00:28]}  Rb6 {[%clk 0:00:52]} 53. Rd5 {[%clk 0:00:25]}  Ra6 {[%clk 0:00:51]} 54. Rd8 {[%clk 0:00:24]}  Ra3 {[%clk 0:00:51]} 55. Rd4 {[%clk 0:00:24]}  Rb3 {[%clk 0:00:50]} 56. Rd6+ {[%clk 0:00:25]}  Kg7 {[%clk 0:00:50]} 57. Kg3 {[%clk 0:00:24]}  Ra3 {[%clk 0:00:50]} 58. Rd1 {[%clk 0:00:23]}  Rb3 {[%clk 0:00:51]} 59. Re1 {[%clk 0:00:23]}  Ra3 {[%clk 0:00:49]} 60. Kf4 {[%clk 0:00:24]}  Kg6 {[%clk 0:00:46]} 61. Re3 {[%clk 0:00:24]}  Ra4 {[%clk 0:00:47]} 62. Rd3 {[%clk 0:00:22]}  Rb4 {[%clk 0:00:46]} 63. Rd6+ {[%clk 0:00:18]}  Kg7 {[%clk 0:00:46]} 64. Kf5 {[%clk 0:00:19]}  Rb3 {[%clk 0:00:40]} 65. f4 {[%clk 0:00:20]}  Rf3 {[%clk 0:00:39]} 66. e5 {[%clk 0:00:19]}  Re3 {[%clk 0:00:39]} 67. Rd7 {[%clk 0:00:20]}  Re1 {[%clk 0:00:37]} 68. Re7 {[%clk 0:00:19]}  Kg8 {[%clk 0:00:21]} 69. Kf6 {[%clk 0:00:18]}  Rf1 {[%clk 0:00:21]} 70. f5 {[%clk 0:00:18]}  Rg1 {[%clk 0:00:22]} 71. Rxf7 {[%clk 0:00:18]}  Rxg4 {[%clk 0:00:22]} 72. e6 {[%clk 0:00:18]}  h5 {[%clk 0:00:21]} 73. e7 {[%clk 0:00:13]}  Re4 {[%clk 0:00:21]} 74. Rf8+ {[%clk 0:00:14]}  Kh7 {[%clk 0:00:21]} 75. e8=Q {[%clk 0:00:14]}  Rxe8 {[%clk 0:00:21]} 76. Rxe8 {[%clk 0:00:15]}  h4 {[%clk 0:00:22]} 77. Re4 {[%clk 0:00:14]}  h3 {[%clk 0:00:23]} 78. Rh4+ {[%clk 0:00:14]}  Kg8 {[%clk 0:00:24]} 79. Rxh3 {[%clk 0:00:14]}  Kf8 {[%clk 0:00:24]} 80. Rh8# {[%clk 0:00:15]} 1-0

[Event "December 5 Late 2023"]
[Site "https://www.chess.com"]
[Date "2023.12.05"]
[Round "3"]
[White "Krallis, Christos"]
[Black "Maksimovic, Bojan"]
[Result "1-0"]
[Board "26"]
[TimeControl "180+1"]
[WhiteFideId "4298896"]
[BlackFideId "14408120"]
[WhiteElo "2660"]
[BlackElo "2929"]
[WhiteTeam "GRE"]
[BlackTeam "BIH"]
[WhiteClock "0:01:00"]
[BlackClock "0:00:00"]

1. Nf3 {[%clk 0:02:58]}  a6 {[%clk 0:02:56]} 2. g3 {[%clk 0:02:55]}  e6 {[%clk 0:02:55]} 3. Bg2 {[%clk 0:02:55]}  d5 {[%clk 0:02:55]} 4. O-O {[%clk 0:02:56]}  Nf6 {[%clk 0:02:55]} 5. b3 {[%clk 0:02:55]}  Be7 {[%clk 0:02:54]} 6. Bb2 {[%clk 0:02:56]}  O-O {[%clk 0:02:54]} 7. c4 {[%clk 0:02:54]}  Nbd7 {[%clk 0:02:49]} 8. Nc3 {[%clk 0:02:52]}  Re8 {[%clk 0:02:47]} 9. d4 {[%clk 0:02:50]}  c6 {[%clk 0:02:26]} 10. Qd3 {[%clk 0:02:45]}  b5 {[%clk 0:02:23]} 11. e4 {[%clk 0:02:13]}  b4 {[%clk 0:01:54]} 12. e5 {[%clk 0:02:04]}  bxc3 {[%clk 0:01:42]} 13. exf6 {[%clk 0:02:03]}  cxb2 {[%clk 0:01:23]} 14. fxe7 {[%clk 0:02:03]}  Qxe7 {[%clk 0:01:23]} 15. Rab1 {[%clk 0:02:00]}  Qa3 {[%clk 0:01:16]} 16. Qc2 {[%clk 0:01:45]}  dxc4 {[%clk 0:01:00]} 17. Ng5 {[%clk 0:01:34]}  Nf6 {[%clk 0:00:36]} 18. Bxc6 {[%clk 0:01:31]}  cxb3 {[%clk 0:00:36]} 19. Qxb3 {[%clk 0:01:25]}  Qa5 {[%clk 0:00:18]} 20. Bxe8 {[%clk 0:01:24]}  Nxe8 {[%clk 0:00:14]} 21. Nxf7 {[%clk 0:01:13]}  Kxf7 {[%clk 0:00:13]} 22. Qf3+ {[%clk 0:01:13]}  Nf6 {[%clk 0:00:02]} 23. Qxa8 {[%clk 0:01:12]}  Qc3 {[%clk 0:00:02]} 24. Qa7+ {[%clk 0:01:04]}  Kg6 {[%clk 0:00:02]} 25. Qc5 {[%clk 0:01:01]}  Qd2 {[%clk 0:00:03]} 26. Qxc8 {[%clk 0:01:00]}  Ne4 {[%clk 0:00:00]} 27. Qxe6+ {[%clk 0:01:00]} 1-0

[Event "December 5 Late 2023"]
[Site "https://www.chess.com"]
[Date "2023.12.05"]
[Round "3"]
[White "Apoorv Kamble"]
[Black "Sjugirov, Sanan"]
[Result "0-1"]
[Board "27"]
[TimeControl "180+1"]
[WhiteFideId "25683012"]
[BlackFideId "4189302"]
[WhiteElo "2658"]
[BlackElo "2917"]
[WhiteTeam "IND"]
[BlackTeam "HUN"]
[WhiteClock "0:00:49"]
[BlackClock "0:00:04"]

1. e4 {[%clk 0:03:00]}  c5 {[%clk 0:03:00]} 2. Nf3 {[%clk 0:03:00]}  Nc6 {[%clk 0:03:00]} 3. d4 {[%clk 0:03:00]}  cxd4 {[%clk 0:03:01]} 4. Nxd4 {[%clk 0:03:01]}  Nf6 {[%clk 0:03:02]} 5. Nc3 {[%clk 0:03:01]}  e5 {[%clk 0:03:02]} 6. Ndb5 {[%clk 0:03:02]}  d6 {[%clk 0:03:03]} 7. Nd5 {[%clk 0:03:03]}  Nxd5 {[%clk 0:03:03]} 8. exd5 {[%clk 0:03:04]}  Nb8 {[%clk 0:03:03]} 9. Qf3 {[%clk 0:03:03]}  Be7 {[%clk 0:02:54]} 10. Qc3 {[%clk 0:03:03]}  Na6 {[%clk 0:02:51]} 11. Be3 {[%clk 0:03:02]}  Bd7 {[%clk 0:01:31]} 12. Nxa7 {[%clk 0:02:58]}  Nc7 {[%clk 0:01:32]} 13. Bb6 {[%clk 0:02:56]}  Nxd5 {[%clk 0:01:26]} 14. Bxd8 {[%clk 0:02:53]}  Nxc3 {[%clk 0:01:26]} 15. Bxe7 {[%clk 0:02:45]}  Kxe7 {[%clk 0:01:24]} 16. bxc3 {[%clk 0:02:43]}  Rxa7 {[%clk 0:01:24]} 17. Kd2 {[%clk 0:02:43]}  d5 {[%clk 0:01:14]} 18. Kc1 {[%clk 0:02:22]}  Rc8 {[%clk 0:01:06]} 19. Kb2 {[%clk 0:02:22]}  Ra5 {[%clk 0:01:06]} 20. Re1 {[%clk 0:02:20]}  Kd6 {[%clk 0:01:03]} 21. Rd1 {[%clk 0:01:56]}  Bb5 {[%clk 0:00:54]} 22. Bd3 {[%clk 0:01:50]}  Ke6 {[%clk 0:00:45]} 23. g4 {[%clk 0:01:44]}  e4 {[%clk 0:00:41]} 24. Rhe1 {[%clk 0:01:42]}  Kf6 {[%clk 0:00:29]} 25. Be2 {[%clk 0:01:36]}  Bxe2 {[%clk 0:00:29]} 26. Rxe2 {[%clk 0:01:37]}  Rb5+ {[%clk 0:00:30]} 27. Kc1 {[%clk 0:01:29]}  Rxc3 {[%clk 0:00:31]} 28. Rd4 {[%clk 0:01:29]}  Ke5 {[%clk 0:00:29]} 29. Ra4 {[%clk 0:01:28]}  Rh3 {[%clk 0:00:25]} 30. Ra8 {[%clk 0:01:22]}  Kf4 {[%clk 0:00:22]} 31. Rg8 {[%clk 0:01:23]}  g6 {[%clk 0:00:20]} 32. Rf8 {[%clk 0:01:21]}  f5 {[%clk 0:00:20]} 33. gxf5 {[%clk 0:01:22]}  gxf5 {[%clk 0:00:21]} 34. Rf7 {[%clk 0:01:13]}  Rxh2 {[%clk 0:00:21]} 35. Kd2 {[%clk 0:01:14]}  d4 {[%clk 0:00:18]} 36. a4 {[%clk 0:01:13]}  Rd5 {[%clk 0:00:16]} 37. Rxb7 {[%clk 0:01:09]}  d3 {[%clk 0:00:16]} 38. cxd3 {[%clk 0:01:09]}  Rxd3+ {[%clk 0:00:17]} 39. Kc2 {[%clk 0:01:09]}  Kf3 {[%clk 0:00:14]} 40. Re1 {[%clk 0:01:07]}  Rxf2+ {[%clk 0:00:13]} 41. Kb1 {[%clk 0:01:08]}  Ra3 {[%clk 0:00:07]} 42. Rxh7 {[%clk 0:01:06]}  Rxa4 {[%clk 0:00:06]} 43. Rh3+ {[%clk 0:01:07]}  Kg2 {[%clk 0:00:05]} 44. Rh8 {[%clk 0:01:02]}  Rb4+ {[%clk 0:00:05]} 45. Kc1 {[%clk 0:01:01]}  f4 {[%clk 0:00:06]} 46. Rg8+ {[%clk 0:01:01]}  Kf3 {[%clk 0:00:06]} 47. Rh8 {[%clk 0:01:02]}  e3 {[%clk 0:00:06]} 48. Reh1 {[%clk 0:00:58]}  Rc4+ {[%clk 0:00:06]} 49. Kb1 {[%clk 0:00:57]}  Rb4+ {[%clk 0:00:06]} 50. Kc1 {[%clk 0:00:57]}  Ra4 {[%clk 0:00:06]} 51. R1h3+ {[%clk 0:00:56]}  Ke2 {[%clk 0:00:06]} 52. Rd8 {[%clk 0:00:54]}  Rf1+ {[%clk 0:00:06]} 53. Kc2 {[%clk 0:00:54]}  Ra2+ {[%clk 0:00:06]} 54. Kb3 {[%clk 0:00:54]}  Rd2 {[%clk 0:00:05]} 55. Re8 {[%clk 0:00:54]}  f3 {[%clk 0:00:05]} 56. Kc4 {[%clk 0:00:52]}  Rc1+ {[%clk 0:00:05]} 57. Kb4 {[%clk 0:00:52]}  Rb2+ {[%clk 0:00:04]} 58. Ka3 {[%clk 0:00:53]}  Rb7 {[%clk 0:00:04]} 59. Rh7 {[%clk 0:00:49]}  Ra1# {[%clk 0:00:04]} 0-1

[Event "December 5 Late 2023"]
[Site "https://www.chess.com"]
[Date "2023.12.05"]
[Round "3"]
[White "Tokhirjonova, Gulrukhbegim"]
[Black "Zhigalko, Sergei"]
[Result "0-1"]
[Board "29"]
[TimeControl "180+1"]
[WhiteFideId "14203626"]
[BlackFideId "13502956"]
[WhiteElo "2654"]
[BlackElo "2913"]
[WhiteTeam "USA"]
[BlackTeam "BLR"]
[WhiteClock "0:00:03"]
[BlackClock "0:00:19"]

1. Nf3 {[%clk 0:03:00]}  d5 {[%clk 0:02:59]} 2. g3 {[%clk 0:03:00]}  c6 {[%clk 0:02:58]} 3. Bg2 {[%clk 0:02:58]}  Bg4 {[%clk 0:02:57]} 4. d4 {[%clk 0:02:57]}  e6 {[%clk 0:02:56]} 5. O-O {[%clk 0:02:54]}  Nf6 {[%clk 0:02:56]} 6. h3 {[%clk 0:02:53]}  Bh5 {[%clk 0:02:55]} 7. Nh4 {[%clk 0:02:51]}  Bd6 {[%clk 0:02:48]} 8. f4 {[%clk 0:02:43]}  Bg6 {[%clk 0:02:41]} 9. c4 {[%clk 0:02:26]}  Be4 {[%clk 0:02:28]} 10. Nc3 {[%clk 0:02:22]}  Bxg2 {[%clk 0:02:27]} 11. Kxg2 {[%clk 0:02:23]}  Nbd7 {[%clk 0:02:25]} 12. b3 {[%clk 0:02:15]}  Bb4 {[%clk 0:02:19]} 13. Qd3 {[%clk 0:02:06]}  O-O {[%clk 0:02:13]} 14. Nf3 {[%clk 0:02:01]}  Bxc3 {[%clk 0:02:09]} 15. Qxc3 {[%clk 0:02:01]}  Ne4 {[%clk 0:02:10]} 16. Qd3 {[%clk 0:02:01]}  a5 {[%clk 0:02:09]} 17. Be3 {[%clk 0:01:51]}  Qe7 {[%clk 0:02:06]} 18. Rac1 {[%clk 0:01:47]}  a4 {[%clk 0:02:05]} 19. Rb1 {[%clk 0:01:19]}  axb3 {[%clk 0:02:04]} 20. Rxb3 {[%clk 0:01:17]}  Rxa2 {[%clk 0:01:20]} 21. Rxb7 {[%clk 0:01:13]}  Ndc5 {[%clk 0:01:17]} 22. Rxe7 {[%clk 0:00:34]}  Nxd3 {[%clk 0:01:17]} 23. Ng1 {[%clk 0:00:23]}  dxc4 {[%clk 0:01:09]} 24. Kf3 {[%clk 0:00:22]}  Nb4 {[%clk 0:00:25]} 25. Kxe4 {[%clk 0:00:21]}  Nd5 {[%clk 0:00:25]} 26. Rd7 {[%clk 0:00:17]}  Nf6+ {[%clk 0:00:24]} 27. Ke5 {[%clk 0:00:14]}  Nxd7+ {[%clk 0:00:25]} 28. Kd6 {[%clk 0:00:15]}  Nf6 {[%clk 0:00:22]} 29. Kxc6 {[%clk 0:00:08]}  Rc8+ {[%clk 0:00:20]} 30. Kb5 {[%clk 0:00:03]}  Rb2+ {[%clk 0:00:19]} 0-1

[Event "December 5 Late 2023"]
[Site "https://www.chess.com"]
[Date "2023.12.05"]
[Round "3"]
[White "Melkumyan, Hrant"]
[Black "Papasimakopoulos, Alexandros"]
[Result "1-0"]
[Board "30"]
[TimeControl "180+1"]
[WhiteFideId "13302485"]
[BlackFideId "4244125"]
[WhiteElo "2909"]
[BlackElo "2650"]
[WhiteTeam "ARM"]
[BlackTeam "GRE"]
[WhiteClock "0:00:10"]
[BlackClock "0:00:02"]

1. Nf3 {[%clk 0:02:49]}  d5 {[%clk 0:02:59]} 2. d4 {[%clk 0:02:48]}  e6 {[%clk 0:02:54]} 3. Bf4 {[%clk 0:02:47]}  Bd6 {[%clk 0:02:53]} 4. e3 {[%clk 0:02:46]}  Ne7 {[%clk 0:02:51]} 5. Bd3 {[%clk 0:02:43]}  b6 {[%clk 0:02:51]} 6. O-O {[%clk 0:02:38]}  Ba6 {[%clk 0:02:47]} 7. Bxa6 {[%clk 0:02:35]}  Nxa6 {[%clk 0:02:48]} 8. c4 {[%clk 0:02:19]}  O-O {[%clk 0:02:46]} 9. Bxd6 {[%clk 0:02:11]}  Qxd6 {[%clk 0:02:42]} 10. Qa4 {[%clk 0:02:05]}  Nb8 {[%clk 0:02:35]} 11. Nc3 {[%clk 0:02:05]}  c6 {[%clk 0:02:24]} 12. e4 {[%clk 0:02:00]}  dxe4 {[%clk 0:02:19]} 13. Nxe4 {[%clk 0:02:00]}  Qc7 {[%clk 0:02:13]} 14. Rad1 {[%clk 0:02:00]}  Nd7 {[%clk 0:02:11]} 15. Rfe1 {[%clk 0:01:58]}  Rfd8 {[%clk 0:02:08]} 16. Qc2 {[%clk 0:01:57]}  h6 {[%clk 0:02:04]} 17. g3 {[%clk 0:01:45]}  Re8 {[%clk 0:01:48]} 18. Kg2 {[%clk 0:01:45]}  Rad8 {[%clk 0:01:48]} 19. b4 {[%clk 0:01:41]}  Nf8 {[%clk 0:01:46]} 20. a4 {[%clk 0:01:39]}  Nf5 {[%clk 0:01:37]} 21. Nc3 {[%clk 0:01:12]}  Ng6 {[%clk 0:01:22]} 22. h4 {[%clk 0:01:06]}  Qe7 {[%clk 0:01:07]} 23. h5 {[%clk 0:01:04]}  Nf8 {[%clk 0:01:05]} 24. c5 {[%clk 0:00:58]}  Qb7 {[%clk 0:00:56]} 25. Qe4 {[%clk 0:00:57]}  bxc5 {[%clk 0:00:50]} 26. dxc5 {[%clk 0:00:56]}  Nd7 {[%clk 0:00:45]} 27. Qc4 {[%clk 0:00:32]}  Nf6 {[%clk 0:00:37]} 28. Ne4 {[%clk 0:00:30]}  Nxe4 {[%clk 0:00:37]} 29. Qxe4 {[%clk 0:00:30]}  Rb8 {[%clk 0:00:33]} 30. Rb1 {[%clk 0:00:25]}  Red8 {[%clk 0:00:33]} 31. b5 {[%clk 0:00:15]}  cxb5 {[%clk 0:00:25]} 32. Qxb7 {[%clk 0:00:16]}  Rxb7 {[%clk 0:00:25]} 33. c6 {[%clk 0:00:17]}  Rb6 {[%clk 0:00:22]} 34. axb5 {[%clk 0:00:18]}  a6 {[%clk 0:00:20]} 35. Red1 {[%clk 0:00:15]}  Rc8 {[%clk 0:00:15]} 36. Ne5 {[%clk 0:00:10]}  axb5 {[%clk 0:00:10]} 37. Rbc1 {[%clk 0:00:09]}  Kf8 {[%clk 0:00:05]} 38. Nd7+ {[%clk 0:00:09]}  Ke7 {[%clk 0:00:05]} 39. Nxb6 {[%clk 0:00:10]}  b4 {[%clk 0:00:04]} 40. Nxc8+ {[%clk 0:00:09]}  Kf6 {[%clk 0:00:02]} 41. c7 {[%clk 0:00:10]} 1-0

[Event "December 5 Late 2023"]
[Site "https://www.chess.com"]
[Date "2023.12.05"]
[Round "3"]
[White "Golubev, Mikhail"]
[Black "Demchenko, Anton"]
[Result "0-1"]
[Board "32"]
[TimeControl "180+1"]
[WhiteFideId "14100983"]
[BlackFideId "4160258"]
[WhiteElo "2634"]
[BlackElo "2892"]
[WhiteTeam "UKR"]
[BlackTeam "SLO"]
[WhiteClock "0:00:00"]
[BlackClock "0:00:05"]

1. e4 {[%clk 0:03:00]}  e5 {[%clk 0:03:00]} 2. Nf3 {[%clk 0:03:00]}  Nc6 {[%clk 0:03:01]} 3. Bc4 {[%clk 0:03:00]}  Nf6 {[%clk 0:03:00]} 4. Ng5 {[%clk 0:03:00]}  d5 {[%clk 0:03:01]} 5. exd5 {[%clk 0:03:01]}  Na5 {[%clk 0:03:02]} 6. Bb5+ {[%clk 0:03:01]}  c6 {[%clk 0:03:02]} 7. dxc6 {[%clk 0:03:01]}  bxc6 {[%clk 0:03:03]} 8. Bd3 {[%clk 0:03:01]}  Nd5 {[%clk 0:03:04]} 9. Nf3 {[%clk 0:03:01]}  Bd6 {[%clk 0:03:04]} 10. O-O {[%clk 0:03:00]}  O-O {[%clk 0:03:05]} 11. Re1 {[%clk 0:02:59]}  Qc7 {[%clk 0:03:06]} 12. Bf1 {[%clk 0:02:54]}  Bg4 {[%clk 0:03:05]} 13. d3 {[%clk 0:02:48]}  f5 {[%clk 0:03:02]} 14. h3 {[%clk 0:02:37]}  Bh5 {[%clk 0:03:02]} 15. Nc3 {[%clk 0:02:35]}  Rad8 {[%clk 0:03:00]} 16. Bd2 {[%clk 0:02:30]}  Nb7 {[%clk 0:02:51]} 17. Be2 {[%clk 0:02:14]}  Bg6 {[%clk 0:02:08]} 18. Ng5 {[%clk 0:01:21]}  Rde8 {[%clk 0:02:07]} 19. Bh5 {[%clk 0:01:21]}  Bxh5 {[%clk 0:01:33]} 20. Qxh5 {[%clk 0:01:22]}  Nf6 {[%clk 0:01:33]} 21. Qe2 {[%clk 0:01:11]}  Nd8 {[%clk 0:01:23]} 22. d4 {[%clk 0:01:02]}  e4 {[%clk 0:01:17]} 23. f3 {[%clk 0:00:47]}  e3 {[%clk 0:01:02]} 24. Qc4+ {[%clk 0:00:42]}  Kh8 {[%clk 0:01:03]} 25. Rxe3 {[%clk 0:00:35]}  Rxe3 {[%clk 0:01:02]} 26. Bxe3 {[%clk 0:00:36]}  h6 {[%clk 0:00:50]} 27. Nge4 {[%clk 0:00:18]}  fxe4 {[%clk 0:00:49]} 28. fxe4 {[%clk 0:00:19]}  Bf4 {[%clk 0:00:35]} 29. Bxf4 {[%clk 0:00:19]}  Qxf4 {[%clk 0:00:35]} 30. Rf1 {[%clk 0:00:19]}  Qe3+ {[%clk 0:00:35]} 31. Kh1 {[%clk 0:00:17]}  Re8 {[%clk 0:00:28]} 32. e5 {[%clk 0:00:12]}  Nh5 {[%clk 0:00:29]} 33. Rf3 {[%clk 0:00:11]}  Qc1+ {[%clk 0:00:13]} 34. Kh2 {[%clk 0:00:11]}  Nf4 {[%clk 0:00:13]} 35. Ne4 {[%clk 0:00:07]}  Nde6 {[%clk 0:00:09]} 36. Qxc6 {[%clk 0:00:07]}  Rd8 {[%clk 0:00:07]} 37. Nd6 {[%clk 0:00:03]}  Kg8 {[%clk 0:00:07]} 38. Qe4 {[%clk 0:00:02]}  Qd2 {[%clk 0:00:07]} 39. c4 {[%clk 0:00:00]}  Ne2 {[%clk 0:00:05]} 0-1

[Event "December 5 Late 2023"]
[Site "https://www.chess.com"]
[Date "2023.12.05"]
[Round "3"]
[White "Alexandre, Anne Shopie Elizabeth"]
[Black "Suder, Jakub"]
[Result "0-1"]
[Board "34"]
[TimeControl "180+1"]
[WhiteFideId "11902418"]
[BlackFideId "1195310"]
[WhiteElo "2875"]
[BlackElo "2534"]
[WhiteTeam "HAI"]
[BlackTeam "POL"]
[WhiteClock "0:01:47"]
[BlackClock "0:01:08"]

1. c4 {[%clk 0:03:00]}  e6 {[%clk 0:02:59]} 2. Nc3 {[%clk 0:03:01]}  d5 {[%clk 0:03:00]} 3. d4 {[%clk 0:03:01]}  a6 {[%clk 0:03:00]} 4. cxd5 {[%clk 0:03:00]}  exd5 {[%clk 0:03:01]} 5. Qb3 {[%clk 0:03:01]}  c6 {[%clk 0:02:58]} 6. Bf4 {[%clk 0:02:56]}  Bd6 {[%clk 0:02:56]} 7. Bxd6 {[%clk 0:02:56]}  Qxd6 {[%clk 0:02:57]} 8. e3 {[%clk 0:02:57]}  Nf6 {[%clk 0:02:54]} 9. Bd3 {[%clk 0:02:57]}  O-O {[%clk 0:02:54]} 10. h3 {[%clk 0:02:58]}  Re8 {[%clk 0:02:53]} 11. Nge2 {[%clk 0:02:57]}  Nbd7 {[%clk 0:02:48]} 12. Qc2 {[%clk 0:02:57]}  Nf8 {[%clk 0:02:45]} 13. O-O-O {[%clk 0:02:52]}  a5 {[%clk 0:02:30]} 14. g4 {[%clk 0:02:50]}  b5 {[%clk 0:02:27]} 15. Ng3 {[%clk 0:02:50]}  a4 {[%clk 0:02:26]} 16. Nce2 {[%clk 0:02:49]}  b4 {[%clk 0:02:21]} 17. Qd2 {[%clk 0:02:49]}  Ba6 {[%clk 0:02:17]} 18. Bxa6 {[%clk 0:02:47]}  Rxa6 {[%clk 0:02:16]} 19. Kb1 {[%clk 0:02:48]}  a3 {[%clk 0:02:04]} 20. b3 {[%clk 0:02:48]}  Ne6 {[%clk 0:02:00]} 21. Rc1 {[%clk 0:02:46]}  Ng5 {[%clk 0:01:51]} 22. Qd3 {[%clk 0:02:46]}  Rb6 {[%clk 0:01:48]} 23. Nf4 {[%clk 0:02:37]}  Nge4 {[%clk 0:01:40]} 24. Nxe4 {[%clk 0:02:37]}  Nxe4 {[%clk 0:01:40]} 25. Rc2 {[%clk 0:02:37]}  Nc3+ {[%clk 0:01:37]} 26. Ka1 {[%clk 0:02:30]}  Rb7 {[%clk 0:01:28]} 27. Rhc1 {[%clk 0:02:27]}  h6 {[%clk 0:01:21]} 28. Ne2 {[%clk 0:02:27]}  Ne4 {[%clk 0:01:13]} 29. Nf4 {[%clk 0:02:20]}  Nc3 {[%clk 0:01:11]} 30. Ne2 {[%clk 0:02:03]}  Ne4 {[%clk 0:01:11]} 31. Rxc6 {[%clk 0:02:03]}  Qh2 {[%clk 0:01:11]} 32. Rc8 {[%clk 0:02:00]}  Re7 {[%clk 0:01:11]} 33. Nf4 {[%clk 0:01:49]}  Qxf2 {[%clk 0:01:08]} 34. Nxd5 {[%clk 0:01:47]}  Qb2# {[%clk 0:01:08]} 0-1

[Event "December 5 Late 2023"]
[Site "https://www.chess.com"]
[Date "2023.12.05"]
[Round "3"]
[White "Kazakouski, Valery"]
[Black "Bogaudinov, Rushan"]
[Result "1-0"]
[Board "37"]
[TimeControl "180+1"]
[WhiteFideId "13507443"]
[BlackFideId "4129288"]
[WhiteElo "2853"]
[BlackElo "2440"]
[WhiteTeam "LTU"]
[BlackTeam "RUS"]
[WhiteClock "0:00:39"]
[BlackClock "0:00:08"]

1. e4 {[%clk 0:02:52]}  e5 {[%clk 0:02:58]} 2. Nf3 {[%clk 0:02:52]}  Nc6 {[%clk 0:02:59]} 3. Bc4 {[%clk 0:02:52]}  Be7 {[%clk 0:02:58]} 4. d4 {[%clk 0:02:51]}  exd4 {[%clk 0:02:56]} 5. Nxd4 {[%clk 0:02:50]}  d6 {[%clk 0:02:52]} 6. Nxc6 {[%clk 0:02:26]}  bxc6 {[%clk 0:02:51]} 7. Qh5 {[%clk 0:02:27]}  g6 {[%clk 0:02:44]} 8. Qf3 {[%clk 0:02:27]}  Be6 {[%clk 0:02:30]} 9. Bxe6 {[%clk 0:02:23]}  fxe6 {[%clk 0:02:31]} 10. O-O {[%clk 0:02:23]}  e5 {[%clk 0:02:19]} 11. Qc3 {[%clk 0:02:02]}  Qd7 {[%clk 0:02:17]} 12. f4 {[%clk 0:02:01]}  Bf6 {[%clk 0:02:10]} 13. f5 {[%clk 0:01:59]}  g5 {[%clk 0:01:56]} 14. Be3 {[%clk 0:01:54]}  h5 {[%clk 0:01:55]} 15. Nd2 {[%clk 0:01:54]}  Nh6 {[%clk 0:01:54]} 16. Kh1 {[%clk 0:01:51]}  O-O {[%clk 0:01:48]} 17. Qd3 {[%clk 0:01:50]}  Kh7 {[%clk 0:01:42]} 18. c4 {[%clk 0:01:47]}  Qf7 {[%clk 0:01:38]} 19. b4 {[%clk 0:01:42]}  a5 {[%clk 0:01:37]} 20. b5 {[%clk 0:01:42]}  a4 {[%clk 0:01:33]} 21. bxc6 {[%clk 0:01:40]}  Rfb8 {[%clk 0:01:24]} 22. Rab1 {[%clk 0:01:39]}  Ng4 {[%clk 0:01:13]} 23. Bg1 {[%clk 0:01:37]}  Qe8 {[%clk 0:01:07]} 24. Qd5 {[%clk 0:01:32]}  Kg7 {[%clk 0:01:01]} 25. Rb7 {[%clk 0:01:29]}  Rc8 {[%clk 0:00:52]} 26. Qxd6 {[%clk 0:01:22]}  Qe7 {[%clk 0:00:46]} 27. Qd7 {[%clk 0:01:06]}  Nh6 {[%clk 0:00:25]} 28. Nf3 {[%clk 0:00:58]}  Nf7 {[%clk 0:00:25]} 29. Rd1 {[%clk 0:00:52]}  g4 {[%clk 0:00:25]} 30. Ne1 {[%clk 0:00:46]}  Rd8 {[%clk 0:00:20]} 31. Qxe7 {[%clk 0:00:45]}  Bxe7 {[%clk 0:00:19]} 32. Rd7 {[%clk 0:00:43]}  Bd6 {[%clk 0:00:16]} 33. c5 {[%clk 0:00:42]}  Rxd7 {[%clk 0:00:11]} 34. cxd7 {[%clk 0:00:43]}  Be7 {[%clk 0:00:11]} 35. Rxc7 {[%clk 0:00:42]}  Bd8 {[%clk 0:00:11]} 36. Rc8 {[%clk 0:00:40]}  Ra7 {[%clk 0:00:11]} 37. c6 {[%clk 0:00:40]}  Kf6 {[%clk 0:00:08]} 38. Bxa7 {[%clk 0:00:39]} 1-0